Workbook

Sheet ClientList (hidden)
D8: =IF(Admin!$B$12="NO","",IF(Admin!$B$4="MONTH",IF(MONTH(NOW())<>MONTH(Admin!$B$6),"This is a free version. Contact Exceldepartment for unlocking full potential of the model.",""), IF(Admin!$B$4="QRT",IF(INT((MONTH(NOW())+2)/3)<>INT((MONTH(Admin!$B$6)+2)/3),"This is a free version. Contact Exceldepartment for unlocking full potential of the model.",""), IF(Admin!$B$4="YEAR",IF(YEAR(NOW())<>YEAR(Admin!$B$6),"This is a free version. Contact Exceldepartment for unlocking full potential of the model.",""), "This is a free version. Contact Exceldepartment for unlocking full potential of the model.")))) -> This is a free version. Contact Exceldepartment for unlocking full potential of the model.
C9: =IFERROR(IF($B9="","",IF(INDEX(#REF!,MATCH($B9,#REF!,0),MATCH(C$10,#REF!,0))=0,"",INDEX(#REF!,MATCH($B9,#REF!,0),MATCH(C$10,#REF!,0)))),"") ->  | E9: =IFERROR(IF($B9="","",IF(INDEX(#REF!,MATCH($B9,#REF!,0),MATCH(G$10,#REF!,0))=0,"",INDEX(#REF!,MATCH($B9,#REF!,0),MATCH(G$10,#REF!,0)))),"") ->  | G9: =IFERROR(IF($B9="","",IF(INDEX(#REF!,MATCH($B9,#REF!,0),MATCH(E$10,#REF!,0))=0,"",INDEX(#REF!,MATCH($B9,#REF!,0),MATCH(E$10,#REF!,0)))),"") ->  | J9: =IFERROR(IF($B9="","",IF(INDEX(#REF!,MATCH($B9,#REF!,0),MATCH(I$10,#REF!,0))=0,"",INDEX(#REF!,MATCH($B9,#REF!,0),MATCH(I$10,#REF!,0)))),"") ->  | K9: =IFERROR(IF($B9="","",IF(INDEX(#REF!,MATCH($B9,#REF!,0),MATCH(J$10,#REF!,0))=0,"",INDEX(#REF!,MATCH($B9,#REF!,0),MATCH(J$10,#REF!,0)))),"") ->  | L9: =IFERROR(IF($B9="","",IF(INDEX(#REF!,MATCH($B9,#REF!,0),MATCH(K$10,#REF!,0))=0,"",INDEX(#REF!,MATCH($B9,#REF!,0),MATCH(K$10,#REF!,0)))),"") ->  | M9: =IFERROR(IF($B9="","",IF(INDEX(#REF!,MATCH($B9,#REF!,0),MATCH(L$10,#REF!,0))=0,"",INDEX(#REF!,MATCH($B9,#REF!,0),MATCH(L$10,#REF!,0)))),"") ->  | N9: =IFERROR(IF($B9="","",IF(INDEX(#REF!,MATCH($B9,#REF!,0),MATCH(M$10,#REF!,0))=0,"",INDEX(#REF!,MATCH($B9,#REF!,0),MATCH(M$10,#REF!,0)))),"") ->  | O9: =IFERROR(IF($B9="","",IF(INDEX(#REF!,MATCH($B9,#REF!,0),MATCH(N$10,#REF!,0))=0,"",INDEX(#REF!,MATCH($B9,#REF!,0),MATCH(N$10,#REF!,0)))),"") ->  | P9: =IFERROR(IF($B9="","",IF(INDEX(#REF!,MATCH($B9,#REF!,0),MATCH(O$10,#REF!,0))=0,"",INDEX(#REF!,MATCH($B9,#REF!,0),MATCH(O$10,#REF!,0)))),"") ->  | Q9: =IFERROR(IF($B9="","",IF(INDEX(#REF!,MATCH($B9,#REF!,0),MATCH(P$10,#REF!,0))=0,"",INDEX(#REF!,MATCH($B9,#REF!,0),MATCH(P$10,#REF!,0)))),"") ->  | R9: =IFERROR(IF($B9="","",IF(INDEX(#REF!,MATCH($B9,#REF!,0),MATCH(Q$10,#REF!,0))=0,"",INDEX(#REF!,MATCH($B9,#REF!,0),MATCH(Q$10,#REF!,0)))),"") ->  | S9: =IFERROR(IF($B9="","",IF(INDEX(#REF!,MATCH($B9,#REF!,0),MATCH(R$10,#REF!,0))=0,"",INDEX(#REF!,MATCH($B9,#REF!,0),MATCH(R$10,#REF!,0)))),"") ->  | T9: =IFERROR(IF($B9="","",IF(INDEX(#REF!,MATCH($B9,#REF!,0),MATCH(S$10,#REF!,0))=0,"",INDEX(#REF!,MATCH($B9,#REF!,0),MATCH(S$10,#REF!,0)))),"") ->  | U9: =IFERROR(IF($B9="","",IF(INDEX(#REF!,MATCH($B9,#REF!,0),MATCH(T$10,#REF!,0))=0,"",INDEX(#REF!,MATCH($B9,#REF!,0),MATCH(T$10,#REF!,0)))),"") ->  | V9: =IFERROR(IF($B9="","",IF(INDEX(#REF!,MATCH($B9,#REF!,0),MATCH(U$10,#REF!,0))=0,"",INDEX(#REF!,MATCH($B9,#REF!,0),MATCH(U$10,#REF!,0)))),"") ->  | W9: =IFERROR(IF($B9="","",IF(INDEX(#REF!,MATCH($B9,#REF!,0),MATCH(V$10,#REF!,0))=0,"",INDEX(#REF!,MATCH($B9,#REF!,0),MATCH(V$10,#REF!,0)))),"") ->  | X9: =IFERROR(IF($B9="","",IF(INDEX(#REF!,MATCH($B9,#REF!,0),MATCH(W$10,#REF!,0))=0,"",INDEX(#REF!,MATCH($B9,#REF!,0),MATCH(W$10,#REF!,0)))),"") ->  | Y9: =IFERROR(IF($B9="","",IF(INDEX(#REF!,MATCH($B9,#REF!,0),MATCH(X$10,#REF!,0))=0,"",INDEX(#REF!,MATCH($B9,#REF!,0),MATCH(X$10,#REF!,0)))),"") ->  | Z9: =IFERROR(IF($B9="","",IF(INDEX(#REF!,MATCH($B9,#REF!,0),MATCH(Y$10,#REF!,0))=0,"",INDEX(#REF!,MATCH($B9,#REF!,0),MATCH(Y$10,#REF!,0)))),"") ->  | AA9: =IFERROR(IF($B9="","",IF(INDEX(#REF!,MATCH($B9,#REF!,0),MATCH(Z$10,#REF!,0))=0,"",INDEX(#REF!,MATCH($B9,#REF!,0),MATCH(Z$10,#REF!,0)))),"") ->  | AB9: =IFERROR(IF($B9="","",IF(INDEX(#REF!,MATCH($B9,#REF!,0),MATCH(AA$10,#REF!,0))=0,"",INDEX(#REF!,MATCH($B9,#REF!,0),MATCH(AA$10,#REF!,0)))),"") ->  | AC9: =IFERROR(IF($B9="","",IF(INDEX(#REF!,MATCH($B9,#REF!,0),MATCH(AB$10,#REF!,0))=0,"",INDEX(#REF!,MATCH($B9,#REF!,0),MATCH(AB$10,#REF!,0)))),"") ->  | AD9: =IFERROR(IF($B9="","",IF(INDEX(#REF!,MATCH($B9,#REF!,0),MATCH(AC$10,#REF!,0))=0,"",INDEX(#REF!,MATCH($B9,#REF!,0),MATCH(AC$10,#REF!,0)))),"") ->  | AE9: =IFERROR(IF($B9="","",IF(INDEX(#REF!,MATCH($B9,#REF!,0),MATCH(AD$10,#REF!,0))=0,"",INDEX(#REF!,MATCH($B9,#REF!,0),MATCH(AD$10,#REF!,0)))),"") ->  | AF9: =IFERROR(IF($B9="","",IF(INDEX(#REF!,MATCH($B9,#REF!,0),MATCH(AE$10,#REF!,0))=0,"",INDEX(#REF!,MATCH($B9,#REF!,0),MATCH(AE$10,#REF!,0)))),"") ->  | AG9: =IFERROR(IF($B9="","",IF(INDEX(#REF!,MATCH($B9,#REF!,0),MATCH(AF$10,#REF!,0))=0,"",INDEX(#REF!,MATCH($B9,#REF!,0),MATCH(AF$10,#REF!,0)))),"") ->  | AH9: =IFERROR(IF($B9="","",IF(INDEX(#REF!,MATCH($B9,#REF!,0),MATCH(AG$10,#REF!,0))=0,"",INDEX(#REF!,MATCH($B9,#REF!,0),MATCH(AG$10,#REF!,0)))),"") ->  | AI9: =IFERROR(IF($B9="","",IF(INDEX(#REF!,MATCH($B9,#REF!,0),MATCH(AH$10,#REF!,0))=0,"",INDEX(#REF!,MATCH($B9,#REF!,0),MATCH(AH$10,#REF!,0)))),"") ->  | AJ9: =IFERROR(IF($B9="","",IF(INDEX(#REF!,MATCH($B9,#REF!,0),MATCH(AI$10,#REF!,0))=0,"",INDEX(#REF!,MATCH($B9,#REF!,0),MATCH(AI$10,#REF!,0)))),"") ->  | AK9: =IFERROR(IF($B9="","",IF(INDEX(#REF!,MATCH($B9,#REF!,0),MATCH(AJ$10,#REF!,0))=0,"",INDEX(#REF!,MATCH($B9,#REF!,0),MATCH(AJ$10,#REF!,0)))),"") ->  | AL9: =IFERROR(IF($B9="","",IF(INDEX(#REF!,MATCH($B9,#REF!,0),MATCH(AK$10,#REF!,0))=0,"",INDEX(#REF!,MATCH($B9,#REF!,0),MATCH(AK$10,#REF!,0)))),"") ->  | AM9: =IFERROR(IF($B9="","",IF(INDEX(#REF!,MATCH($B9,#REF!,0),MATCH(AL$10,#REF!,0))=0,"",INDEX(#REF!,MATCH($B9,#REF!,0),MATCH(AL$10,#REF!,0)))),"") ->  | AP9: =IFERROR(RIGHT(H9,LEN(H9)-FIND("@",H9)),"") -> 
B10: Client | C10: Company | D10: Project | E10: Company Address | F10: InoviceRef | G10: Contact Role in Company | H10: InvoiceEmail | I10: Company City | J10: Company Business | K10: Company Comment | L10: Company Data 1 | M10: Company Data 2 | N10: Company Data 3 | O10: _Email | P10: Contact Phone | Q10: Contact Address | R10: Postal Code | S10: Lead Source | T10: Lead Status | U10: Emotional | V10: Business | W10: Party | X10: Technology | Y10: FirstContact | Z10: LastContact | AA10: Affärsstatus | AB10: Project 1 | AC10: Project Date 1 | AD10: Project Date 2 | AE10: Budget % 1 | AF10: Budget % 2 | AG10: Budget Value 1 | AH10: Budget Value 2 | AI10: Budget Value 3 | AJ10: Comment | AK10: Action | AL10: Email Text | AM10: Attachement | AN10: InvoiceAdress | AO10: InvoiceRef | AP10: _emailEnding | AQ10: GLN | AR10: Role | AS10: Phone Nr. | AT10: Peppol ID
B11: Company 1 | C11: Company AB 1 | D11: Project 1 | E11: Random Address 1, 111 11 City | F11: Anders Gustavsson | G11: CFO | H11: info@exceldepartment.com | I11: City | J11: Finance | O11: info@exceldepartment.com | R11: 111 11 | AN11: Random Address 1, 111 11 City | AO11: Anders Gustavsson | AP11: =IFERROR(RIGHT(H11,LEN(H11)-FIND("@",H11)),"") -> exceldepartment.com
B12: Company 2 | C12: Company AB 2 | D12: Project 2 | E12: Random Address 2, 111 11 City | F12: Niklas Gustavsson | G12: CTO | H12: info@exceldepartment.com | I12: City | J12: Finance | O12: info@exceldepartment.com | R12: 111 11 | AN12: Random Address 2, 111 11 City | AO12: Niklas Gustavsson | AP12: exceldepartment.com
B13: Company 3 | C13: Company AB 3 | D13: Project 3 | E13: Random Address 3, 111 11 City | F13: Lukas Gustavsson | G13: CEO | H13: info@exceldepartment.com | I13: City | J13: Finance | O13: info@exceldepartment.com | R13: 111 11 | AN13: Random Address 3, 111 11 City | AO13: Lukas Gustavsson | AP13: exceldepartment.com
B14: Company 1 | C14: Company AB 1 | D14: Project 4 | E14: Random Address 1, 111 11 City | F14: Erik Gustavsson | G14: CEO | H14: info@exceldepartment.com | I14: City | J14: Finance | O14: info@exceldepartment.com | R14: 111 11 | AN14: Random Address 1, 111 11 City | AO14: Erik Gustavsson | AP14: exceldepartment.com
B15: Company 5 | C15: Company AB 5 | D15: Project 5 | E15: Random Address 5, 111 11 City | F15: Pontus Gustavsson | G15: CTO | H15: info@exceldepartment.com | I15: City | J15: Finance | O15: info@exceldepartment.com | R15: 111 11 | AN15: Random Address 5, 111 11 City | AO15: Pontus Gustavsson | AP15: exceldepartment.com
B16: Company 2 | C16: Company AB 2 | D16: Project 6 | E16: Random Address 2, 111 11 City | F16: Goran Gustavsson | G16: CEO | H16: info@exceldepartment.com | I16: City | J16: Finance | O16: info@exceldepartment.com | R16: 111 11 | AN16: Random Address 2, 111 11 City | AO16: Goran Gustavsson | AP16: exceldepartment.com
D17: Project 7

Sheet InvoiceList (hidden)
A1: 2023 | B1: Project | C1: Company | D1: Company Address | E1: InoviceRef | F1: _Status | G1: InvoiceNr | H1: Faktura Nr. | I1: _responsible | J1: _KommentarFaktura | K1: InvoiceDate | L1: InvoiceEmail | M1: _CC | N1: _EmailSubject | O1: _EmailBody | P1: _FakturaTotal | Q1: Titel 1 | R1: Class 1 | S1: Timmar 1 | T1: Timtaxa 1 | U1: Timtaxa Total 1 | V1: Titel 2 | W1: Class 2 | X1: Timmar 2 | Y1: Timtaxa 2 | Z1: Timtaxa Total 2 | AA1: Titel 3 | AB1: Class 3 | AC1: Timmar 3 | AD1: Timtaxa 3 | AE1: Timtaxa Total 3 | AF1: Titel 4 | AG1: Class 4 | AH1: Timmar 4 | AI1: Timtaxa 4 | AJ1: Timtaxa Total 4 | AK1: Titel 5 | AL1: Class 5 | AM1: Timmar 5 | AN1: Timtaxa 5 | AO1: Timtaxa Total 5 | AP1: PaymentTerms | AQ1: DueDate
F2: 2_Generate
F3: 3_GetDetails
B4: =IF(Admin!$B$12="NO","",IF(Admin!$B$4="MONTH",IF(MONTH(NOW())<>MONTH(Admin!$B$6),"This is a free version. Contact Exceldepartment for unlocking full potential of the model.",""), IF(Admin!$B$4="QRT",IF(INT((MONTH(NOW())+2)/3)<>INT((MONTH(Admin!$B$6)+2)/3),"This is a free version. Contact Exceldepartment for unlocking full potential of the model.",""), IF(Admin!$B$4="YEAR",IF(YEAR(NOW())<>YEAR(Admin!$B$6),"This is a free version. Contact Exceldepartment for unlocking full potential of the model.",""), "This is a free version. Contact Exceldepartment for unlocking full potential of the model.")))) -> This is a free version. Contact Exceldepartment for unlocking full potential of the model.
AP8: 30
F9: 2_Generate | G9: =IF(ROW()=9,0,MAX($G$1:G8)+1) -> 0 | H9: =IF(G9="","","Faktura " & G9) -> Faktura 0 | K9: =IF(F9="To Send",TODAY(),"") ->  | P9: =IFERROR(SUMIFS(K9:BBN9,K$10:BBN$10,"Timtaxa Total*"),0) -> 0 | Q9: ="Senior Konsult" -> Senior Konsult | T9: =1350 -> 1350 | U9: =IFERROR(S9*T9,"") -> 0 | Z9: =IFERROR(X9*Y9,"") -> 0 | AE9: =IFERROR(AC9*AD9,"") -> 0 | AJ9: =IFERROR(AH9*AI9,"") -> 0 | AO9: =IFERROR(AM9*AN9,"") -> 0 | AQ9: =IFERROR(K9+IF(AP9="",30,AP9),AQ8) -> 00:00:00
B10: Project | C10: Company | D10: Company Address | E10: InoviceRef | F10: _Status | G10: InvoiceNr | H10: Faktura Nr. | I10: _responsible | J10: _KommentarFaktura | K10: InvoiceDate | L10: InvoiceEmail | M10: _CC | N10: _EmailSubject | O10: _EmailBody | P10: _FakturaTotal | Q10: Titel 1 | R10: Class 1 | S10: Timmar 1 | T10: Timtaxa 1 | U10: Timtaxa Total 1 | V10: Titel 2 | W10: Class 2 | X10: Timmar 2 | Y10: Timtaxa 2 | Z10: Timtaxa Total 2 | AA10: Titel 3 | AB10: Class 3 | AC10: Timmar 3 | AD10: Timtaxa 3 | AE10: Timtaxa Total 3 | AF10: Titel 4 | AG10: Class 4 | AH10: Timmar 4 | AI10: Timtaxa 4 | AJ10: Timtaxa Total 4 | AK10: Titel 5 | AL10: Class 5 | AM10: Timmar 5 | AN10: Timtaxa 5 | AO10: Timtaxa Total 5 | AP10: PaymentTerms | AQ10: DueDate
B11: Project 1 | C11: Company AB 1 | D11: Random Address 1, 111 11 City | E11: Anders Gustavsson | F11: 2_Generate | G11: =MAX($G$1:G10)+1 -> 1 | H11: ="Faktura " &G11 -> Faktura 1 | K11: 2020-08-07 | L11: info@exceldepartment.com | N11: Faktura Augusti | O11: Hallå! Här kommer fakturan för det vi gjort nu under augusti. Lukas Lilja - Excel Evangelist - 46 706 63 83 06 | P11: =IFERROR(SUMIFS(K11:BBN11,K$10:BBN$10,"Timtaxa Total*"),0) -> 7375 | Q11: ="Senior Konsult" -> Senior Konsult | S11: 5 | T11: 1350 | U11: =IFERROR(S11*T11,"") -> 6750 | V11: Rabbaterad timmar | X11: 1 | Y11: 625 | Z11: =IFERROR(X11*Y11,"") -> 625 | AE11: =IFERROR(AC11*AD11,"") -> 0 | AJ11: =IFERROR(AH11*AI11,"") -> 0 | AO11: =IFERROR(AM11*AN11,"") -> 0 | AP11: 30 | AQ11: =IFERROR(K11+IF(AP11="",$AP$8,AP11),AQ10) -> 2020-09-06
B12: Project 2 | C12: Company AB 2 | D12: Random Address 2, 111 11 City | E12: Niklas Gustavsson | F12: 2_Generate | G12: =MAX($G$1:G11)+1 -> 2 | H12: ="Faktura " &G12 -> Faktura 2 | K12: 2020-08-07 | L12: info@exceldepartment.com | N12: Kreditfaktura Augusti | O12: Hallå! Den tidigare fakturan gick iväg utan fakturadatum, detta är motsvarande kreditfaktura som annulerar den. Lukas Lilja - Excel Evangelist - 46 706 63 83 06 | P12: 5300 | Q12: Senior Konsult | S12: 3 | T12: 1350 | U12: 4050 | V12: Rabbaterad timmar | X12: 2 | Y12: 625 | Z12: 1250 | AE12: 0 | AJ12: 0 | AO12: 0 | AP12: 60 | AQ12: =IFERROR(K12+IF(AP12="",30,AP12),AQ11) -> 2020-10-06
B13: Project 3 | C13: Company AB 3 | D13: Random Address 3, 111 11 City | E13: Lukas Gustavsson | F13: 2_Generate | G13: =MAX($G$1:G12)+1 -> 3 | H13: Faktura 3 | K13: 2020-08-07 | L13: info@exceldepartment.com | N13: Kreditfaktura Augusti | O13: Hallå! Den tidigare fakturan gick iväg utan fakturadatum, detta är motsvarande kreditfaktura som annulerar den. Lukas Lilja - Excel Evangelist - 46 706 63 83 06 | P13: 2700 | Q13: Senior Konsult | S13: 2 | T13: 1350 | U13: 2700 | V13: Rabbaterad timmar | X13: 0 | Y13: 625 | Z13: 0 | AE13: 0 | AJ13: 0 | AO13: 0 | AP13: 60 | AQ13: 2020-10-06
B14: Project 4 | C14: Company AB 1 | D14: Random Address 1, 111 11 City | E14: Erik Gustavsson | F14: 1_Sent | G14: =MAX($G$1:G13)+1 -> 4 | H14: Faktura 4 | K14: 2020-08-07 | L14: info@exceldepartment.com | N14: Kreditfaktura Augusti | O14: Hallå! Den tidigare fakturan gick iväg utan fakturadatum, detta är motsvarande kreditfaktura som annulerar den. Lukas Lilja - Excel Evangelist - 46 706 63 83 06 | P14: 7375 | Q14: Senior Konsult | S14: 5 | T14: 1350 | U14: 6750 | V14: Rabbaterad timmar | X14: 1 | Y14: 625 | Z14: 625 | AE14: 0 | AJ14: 0 | AO14: 0 | AP14: 90 | AQ14: 2020-11-05
B15: Project 5 | C15: Company AB 5 | D15: Random Address 5, 111 11 City | E15: Pontus Gustavsson | F15: 1_Sent | G15: =MAX($G$1:G14)+1 -> 5 | H15: Faktura 5 | K15: 2020-08-07 | L15: info@exceldepartment.com | N15: Kreditfaktura Augusti | O15: Hallå! Den tidigare fakturan gick iväg utan fakturadatum, detta är motsvarande kreditfaktura som annulerar den. Lukas Lilja - Excel Evangelist - 46 706 63 83 06 | P15: 14750 | Q15: Senior Konsult | S15: 10 | T15: 1350 | U15: 13500 | V15: Rabbaterad timmar | X15: 2 | Y15: 625 | Z15: 1250 | AE15: 0 | AJ15: 0 | AO15: 0 | AP15: 30 | AQ15: 2020-09-06
B16: Project 6 | C16: Company AB 2 | D16: Random Address 2, 111 11 City | E16: Goran Gustavsson | F16: 1_Sent | G16: =MAX($G$1:G15)+1 -> 6 | H16: Faktura 6 | K16: 2020-08-07 | L16: info@exceldepartment.com | N16: Kreditfaktura Augusti | O16: Hallå! Den tidigare fakturan gick iväg utan fakturadatum, detta är motsvarande kreditfaktura som annulerar den. Lukas Lilja - Excel Evangelist - 46 706 63 83 06 | P16: 1975 | Q16: Senior Konsult | S16: 1 | T16: 1350 | U16: 1350 | V16: Rabbaterad timmar | X16: 1 | Y16: 625 | Z16: 625 | AE16: 0 | AJ16: 0 | AO16: 0 | AP16: 30 | AQ16: 2020-09-06
B17: Project 7 | F17: 31_AwaitingDetails | G17: =IF(ROW()=9,0,MAX($G$1:G16)+1) -> 7 | H17: =IF(G17="","","Faktura " & G17) -> Faktura 7 | K17: =IF(F17="To Send",TODAY(),"") ->  | P17: =IFERROR(SUMIFS(K17:BBN17,K$10:BBN$10,"Timtaxa Total*"),0) -> 0 | Q17: ="Senior Konsult" -> Senior Konsult | T17: =1350 -> 1350 | U17: =IFERROR(S17*T17,"") -> 0 | Z17: =IFERROR(X17*Y17,"") -> 0 | AE17: =IFERROR(AC17*AD17,"") -> 0 | AJ17: =IFERROR(AH17*AI17,"") -> 0 | AO17: =IFERROR(AM17*AN17,"") -> 0 | AQ17: =IFERROR(K17+IF(AP17="",30,AP17),AQ16) -> 2020-09-06

Sheet ManualInvoice
A1: Company AB | G1: Faktura
A2: =IF(Admin!$B$12="NO","",IF(Admin!$B$4="MONTH",IF(MONTH(NOW())<>MONTH(Admin!$B$6),"This is a free version. Contact Exceldepartment for unlocking full potential of the model.",""), IF(Admin!$B$4="QRT",IF(INT((MONTH(NOW())+2)/3)<>INT((MONTH(Admin!$B$6)+2)/3),"This is a free version. Contact Exceldepartment for unlocking full potential of the model.",""), IF(Admin!$B$4="YEAR",IF(YEAR(NOW())<>YEAR(Admin!$B$6),"This is a free version. Contact Exceldepartment for unlocking full potential of the model.",""), "This is a free version. Contact Exceldepartment for unlocking full potential of the model.")))) -> This is a free version. Contact Exceldepartment for unlocking full potential of the model. | G2: Fakturanummer | I2: Fakturadatum
I3: =TODAY() -> 2023-10-24
G5: Mottagare
A12: Er referens | G12: Vår referens | H12: =G3 -> 0
G13: Betalningsvillkor | I13: =H13 & " dagar" -> dagar
G14: Förfallodatum | H14: =IFERROR(I3+H13*1,"") -> 2023-10-24
A18: Beskrivning | D18: Antal | E18: á pris | F18: Belopp ex moms | G18: Moms | H18: Moms kr | I18: Belopp
F20: =IF(A20="","",IFERROR(D20*E20,"")) ->  | G20: =IF(A20="","",IF(OR(F20=0,A20="",F20=""),"",0.25)) ->  | H20: =IF(A20="","",IFERROR(E20*G20*D20,"")) ->  | I20: =IF(A20="","",IFERROR(IF(ISERROR(D20*E20),"",IF(D20*E20+H20=0,"",D20*E20)),"")) ->  | J20: 1
F21: =IF(A21="","",IFERROR(D21*E21,"")) ->  | G21: =IF(A21="","",IF(OR(F21=0,A21="",F21=""),"",0.25)) ->  | H21: =IF(A21="","",IFERROR(E21*G21*D21,"")) ->  | I21: =IF(A21="","",IFERROR(IF(ISERROR(D21*E21),"",IF(D21*E21+H21=0,"",D21*E21)),"")) ->  | J21: 2
J22: 3
J23: 4
J24: 5
J25: 6
J26: 7
J27: 8
J28: 9
J29: 10
J36: 11
J37: 12
J38: 13
J39: 14
J40: 15
J41: 16
J42: 17
G43: Belopp före moms | I43: =SUM(I20:I42) -> 0
G44: Total moms | I44: =SUM(H20:H42) -> 0
G45: Öresavrundning | I45: =ROUND(SUM(I43:I44),0)-SUM(I43:I44) -> 0
G46: Att Betala | I46: =SUM(I43:I45) -> 0
A47: Adress | C47: Telefonnummer | G47: BankGiro | I47: Organisationsnr
C49: Epost | G49: BIC | I49: Momsreg.nr
C51: Bolaget innehar F-skattesedel | G51: IBAN

Sheet AutoInvoice (hidden)
A1: =IF(ManualInvoice!A1="","Saknas",ManualInvoice!A1) -> Company AB | G1: Faktura
G2: Fakturanummer | I2: Fakturadatum
G3: Faktura 5 | I3: =IFERROR(INDEX(InvoiceList!$A$11:$CG$16,MATCH(G3,InvoiceList!$H$11:$H$16,0),MATCH("InvoiceDate",InvoiceList!10:10,0)),"Fakturadatum saknas") -> 2020-08-07
G5: Mottagare
G6: =IF(INDEX(InvoiceList!$A$11:$CG$16,MATCH(G3,InvoiceList!$H$11:$H$16,0),MATCH("Company",InvoiceList!10:10,0))="","",INDEX(InvoiceList!$A$11:$CG$16,MATCH(G3,InvoiceList!$H$11:$H$16,0),MATCH("Company",InvoiceList!10:10,0)))&CHAR(10)&IF(INDEX(InvoiceList!$A$11:$CG$16,MATCH(G3,InvoiceList!$H$11:$H$16,0),MATCH("Company Address",InvoiceList!10:10,0))="","",INDEX(InvoiceList!$A$11:$CG$16,MATCH(G3,InvoiceList!$H$11:$H$16,0),MATCH("Company Address",InvoiceList!10:10,0))) -> Company AB 5 Random Address 5, 111 11 City
A12: Er referens | B12: =IF(INDEX(InvoiceList!$A$11:$CG$16,MATCH(G3,InvoiceList!$H$11:$H$16,0),MATCH("InoviceRef",InvoiceList!10:10,0))="","",INDEX(InvoiceList!$A$11:$CG$16,MATCH(G3,InvoiceList!$H$11:$H$16,0),MATCH("InoviceRef",InvoiceList!10:10,0))) -> Pontus Gustavsson | G12: Vår referens | H12: =G3 -> Faktura 5
G13: Betalningsvillkor | H13: =IF(INDEX(InvoiceList!$A$11:$CG$16,MATCH(G3,InvoiceList!$H$11:$H$16,0),MATCH("PaymentTerms",InvoiceList!10:10,0))="",30,INDEX(InvoiceList!$A$11:$CG$16,MATCH(G3,InvoiceList!$H$11:$H$16,0),MATCH("PaymentTerms",InvoiceList!10:10,0)))&" dagar" -> 30 dagar
G14: Förfallodatum | H14: =IFERROR(I3+LEFT(H13,SEARCH(" ",H13)-1),"") -> 2020-09-06
A17: =IF(Admin!$B$12="NO","",IF(Admin!$B$4="MONTH",IF(MONTH(NOW())<>MONTH(Admin!$B$6),"This is a free version. Contact Exceldepartment for unlocking full potential of the model.",""), IF(Admin!$B$4="QRT",IF(INT((MONTH(NOW())+2)/3)<>INT((MONTH(Admin!$B$6)+2)/3),"This is a free version. Contact Exceldepartment for unlocking full potential of the model.",""), IF(Admin!$B$4="YEAR",IF(YEAR(NOW())<>YEAR(Admin!$B$6),"This is a free version. Contact Exceldepartment for unlocking full potential of the model.",""), "This is a free version. Contact Exceldepartment for unlocking full potential of the model.")))) -> This is a free version. Contact Exceldepartment for unlocking full potential of the model.
A18: Beskrivning | D18: Antal | E18: á pris | F18: Belopp ex moms | G18: Moms | H18: Moms kr | I18: Belopp
A20: =IFERROR(IF(INDEX(InvoiceList!$A$11:$CG$16,MATCH(AutoInvoice!$G$3,InvoiceList!$H$11:$H$16,0),MATCH("Titel "&AutoInvoice!J20,InvoiceList!$A$10:$CK$10,0))=0,"",INDEX(InvoiceList!$A$11:$CG$16,MATCH(AutoInvoice!$G$3,InvoiceList!$H$11:$H$16,0),MATCH("Titel "&AutoInvoice!J20,InvoiceList!$A$10:$CK$10,0)))& IF(INDEX(InvoiceList!$A$11:$CG$16,MATCH(AutoInvoice!$G$3,InvoiceList!$H$11:$H$16,0),MATCH("Class "&AutoInvoice!J20,InvoiceList!$A$10:$CK$10,0))=0,"",CHAR(10)&INDEX(InvoiceList!$A$11:$CG$16,MATCH(AutoInvoice!$G$3,InvoiceList!$H$11:$H$16,0),MATCH("Class "&AutoInvoice!J20,InvoiceList!$A$10:$CK$10,0))),"") -> Senior Konsult | D20: =IF(A20="","",IFERROR(INDEX(InvoiceList!$A$11:$CG$16,MATCH(AutoInvoice!$G$3,InvoiceList!$H$11:$H$16,0),MATCH("Timmar "&AutoInvoice!J20,InvoiceList!$10:$10,0)),"")) -> 10 | E20: =IF(A20="","",IFERROR(INDEX(InvoiceList!$A$11:$CG$16,MATCH(AutoInvoice!$G$3,InvoiceList!$H$11:$H$16,0),MATCH("Timtaxa "&AutoInvoice!J20,InvoiceList!$10:$10,0)),"")) -> 1350 | F20: =IF(A20="","",IFERROR(D20*E20,"")) -> 13500 | G20: =IF(A20="","",IF(OR(F20=0,A20="",F20=""),"",0.25)) -> 0.25 | H20: =IF(A20="","",IFERROR(E20*G20*D20,"")) -> 3375 | I20: =IF(A20="","",IFERROR(IF(ISERROR(D20*E20),"",IF(D20*E20+H20=0,"",D20*E20)),"")) -> 13500 | J20: 1
A21: =IFERROR(IF(INDEX(InvoiceList!$A$11:$CG$16,MATCH(AutoInvoice!$G$3,InvoiceList!$H$11:$H$16,0),MATCH("Titel "&AutoInvoice!J21,InvoiceList!$A$10:$CK$10,0))=0,"",INDEX(InvoiceList!$A$11:$CG$16,MATCH(AutoInvoice!$G$3,InvoiceList!$H$11:$H$16,0),MATCH("Titel "&AutoInvoice!J21,InvoiceList!$A$10:$CK$10,0)))& IF(INDEX(InvoiceList!$A$11:$CG$16,MATCH(AutoInvoice!$G$3,InvoiceList!$H$11:$H$16,0),MATCH("Class "&AutoInvoice!J21,InvoiceList!$A$10:$CK$10,0))=0,"",CHAR(10)&INDEX(InvoiceList!$A$11:$CG$16,MATCH(AutoInvoice!$G$3,InvoiceList!$H$11:$H$16,0),MATCH("Class "&AutoInvoice!J21,InvoiceList!$A$10:$CK$10,0))),"") -> Rabbaterad timmar | D21: =IF(A21="","",IFERROR(INDEX(InvoiceList!$A$11:$CG$16,MATCH(AutoInvoice!$G$3,InvoiceList!$H$11:$H$16,0),MATCH("Timmar "&AutoInvoice!J21,InvoiceList!$10:$10,0)),"")) -> 2 | E21: =IF(D21="","",IFERROR(INDEX(InvoiceList!$A$11:$CG$16,MATCH(AutoInvoice!$G$3,InvoiceList!$H$11:$H$16,0),MATCH("Timtaxa "&AutoInvoice!J21,InvoiceList!$10:$10,0)),"")) -> 625 | F21: =IF(A21="","",IFERROR(D21*E21,"")) -> 1250 | G21: =IF(A21="","",IF(OR(F21=0,A21="",F21=""),"",0.25)) -> 0.25 | H21: =IF(A21="","",IFERROR(E21*G21*D21,"")) -> 312.5 | I21: =IF(A21="","",IFERROR(IF(ISERROR(D21*E21),"",IF(D21*E21+H21=0,"",D21*E21)),"")) -> 1250 | J21: 2
A22: =IFERROR(IF(INDEX(InvoiceList!$A$11:$CG$16,MATCH(AutoInvoice!$G$3,InvoiceList!$H$11:$H$16,0),MATCH("Titel "&AutoInvoice!J22,InvoiceList!$A$10:$CK$10,0))=0,"",INDEX(InvoiceList!$A$11:$CG$16,MATCH(AutoInvoice!$G$3,InvoiceList!$H$11:$H$16,0),MATCH("Titel "&AutoInvoice!J22,InvoiceList!$A$10:$CK$10,0)))& IF(INDEX(InvoiceList!$A$11:$CG$16,MATCH(AutoInvoice!$G$3,InvoiceList!$H$11:$H$16,0),MATCH("Class "&AutoInvoice!J22,InvoiceList!$A$10:$CK$10,0))=0,"",CHAR(10)&INDEX(InvoiceList!$A$11:$CG$16,MATCH(AutoInvoice!$G$3,InvoiceList!$H$11:$H$16,0),MATCH("Class "&AutoInvoice!J22,InvoiceList!$A$10:$CK$10,0))),"") ->  | D22: =IF(A22="","",IFERROR(INDEX(InvoiceList!$A$11:$CG$16,MATCH(AutoInvoice!$G$3,InvoiceList!$H$11:$H$16,0),MATCH("Timmar "&AutoInvoice!J22,InvoiceList!$10:$10,0)),"")) ->  | E22: =IF(D22="","",IFERROR(INDEX(InvoiceList!$A$11:$CG$16,MATCH(AutoInvoice!$G$3,InvoiceList!$H$11:$H$16,0),MATCH("Timtaxa "&AutoInvoice!J22,InvoiceList!$10:$10,0)),"")) ->  | G22: =IF(A22="","",IF(OR(F22=0,A22="",F22=""),"",0.25)) ->  | J22: 3
A23: =IFERROR(IF(INDEX(InvoiceList!$A$11:$CG$16,MATCH(AutoInvoice!$G$3,InvoiceList!$H$11:$H$16,0),MATCH("Titel "&AutoInvoice!J23,InvoiceList!$A$10:$CK$10,0))=0,"",INDEX(InvoiceList!$A$11:$CG$16,MATCH(AutoInvoice!$G$3,InvoiceList!$H$11:$H$16,0),MATCH("Titel "&AutoInvoice!J23,InvoiceList!$A$10:$CK$10,0)))& IF(INDEX(InvoiceList!$A$11:$CG$16,MATCH(AutoInvoice!$G$3,InvoiceList!$H$11:$H$16,0),MATCH("Class "&AutoInvoice!J23,InvoiceList!$A$10:$CK$10,0))=0,"",CHAR(10)&INDEX(InvoiceList!$A$11:$CG$16,MATCH(AutoInvoice!$G$3,InvoiceList!$H$11:$H$16,0),MATCH("Class "&AutoInvoice!J23,InvoiceList!$A$10:$CK$10,0))),"") ->  | D23: =IF(A23="","",IFERROR(INDEX(InvoiceList!$A$11:$CG$16,MATCH(AutoInvoice!$G$3,InvoiceList!$H$11:$H$16,0),MATCH("Timmar "&AutoInvoice!J23,InvoiceList!$10:$10,0)),"")) ->  | E23: =IF(D23="","",IFERROR(INDEX(InvoiceList!$A$11:$CG$16,MATCH(AutoInvoice!$G$3,InvoiceList!$H$11:$H$16,0),MATCH("Timtaxa "&AutoInvoice!J23,InvoiceList!$10:$10,0)),"")) ->  | G23: =IF(A23="","",IF(OR(F23=0,A23="",F23=""),"",0.25)) ->  | J23: 4
A24: =IFERROR(IF(INDEX(InvoiceList!$A$11:$CG$16,MATCH(AutoInvoice!$G$3,InvoiceList!$H$11:$H$16,0),MATCH("Titel "&AutoInvoice!J24,InvoiceList!$A$10:$CK$10,0))=0,"",INDEX(InvoiceList!$A$11:$CG$16,MATCH(AutoInvoice!$G$3,InvoiceList!$H$11:$H$16,0),MATCH("Titel "&AutoInvoice!J24,InvoiceList!$A$10:$CK$10,0)))& IF(INDEX(InvoiceList!$A$11:$CG$16,MATCH(AutoInvoice!$G$3,InvoiceList!$H$11:$H$16,0),MATCH("Class "&AutoInvoice!J24,InvoiceList!$A$10:$CK$10,0))=0,"",CHAR(10)&INDEX(InvoiceList!$A$11:$CG$16,MATCH(AutoInvoice!$G$3,InvoiceList!$H$11:$H$16,0),MATCH("Class "&AutoInvoice!J24,InvoiceList!$A$10:$CK$10,0))),"") ->  | D24: =IF(A24="","",IFERROR(INDEX(InvoiceList!$A$11:$CG$16,MATCH(AutoInvoice!$G$3,InvoiceList!$H$11:$H$16,0),MATCH("Timmar "&AutoInvoice!J24,InvoiceList!$10:$10,0)),"")) ->  | E24: =IF(D24="","",IFERROR(INDEX(InvoiceList!$A$11:$CG$16,MATCH(AutoInvoice!$G$3,InvoiceList!$H$11:$H$16,0),MATCH("Timtaxa "&AutoInvoice!J24,InvoiceList!$10:$10,0)),"")) ->  | G24: =IF(A24="","",IF(OR(F24=0,A24="",F24=""),"",0.25)) ->  | J24: 5
A25: =IFERROR(IF(INDEX(InvoiceList!$A$11:$CG$16,MATCH(AutoInvoice!$G$3,InvoiceList!$H$11:$H$16,0),MATCH("Titel "&AutoInvoice!J25,InvoiceList!$A$10:$CK$10,0))=0,"",INDEX(InvoiceList!$A$11:$CG$16,MATCH(AutoInvoice!$G$3,InvoiceList!$H$11:$H$16,0),MATCH("Titel "&AutoInvoice!J25,InvoiceList!$A$10:$CK$10,0))),"") ->  | D25: =IF(A25="","",IFERROR(INDEX(InvoiceList!$A$11:$CG$16,MATCH(AutoInvoice!$G$3,InvoiceList!$H$11:$H$16,0),MATCH("Timmar "&AutoInvoice!J25,InvoiceList!$10:$10,0)),"")) ->  | E25: =IF(A25="","",IFERROR(INDEX(InvoiceList!$A$11:$CG$16,MATCH(AutoInvoice!$G$3,InvoiceList!$H$11:$H$16,0),MATCH("Timtaxa "&AutoInvoice!J25,InvoiceList!$10:$10,0)),"")) ->  | G25: =IF(A25="","",IF(OR(F25=0,A25="",F25=""),"",0.25)) ->  | J25: 6
D26: =IF(A26="","",IFERROR(INDEX(InvoiceList!$A$11:$CG$16,MATCH(AutoInvoice!$G$3,InvoiceList!$H$11:$H$16,0),MATCH("Timmar "&AutoInvoice!J26,InvoiceList!$10:$10,0)),"")) ->  | E26: =IF(A26="","",IFERROR(INDEX(InvoiceList!$A$11:$CG$16,MATCH(AutoInvoice!$G$3,InvoiceList!$H$11:$H$16,0),MATCH("Timtaxa "&AutoInvoice!J26,InvoiceList!$10:$10,0)),"")) ->  | J26: 7
J27: 8
J28: 9
J29: 10
A35: =IFERROR(IF(INDEX(InvoiceList!$A$11:$CG$16,MATCH(AutoInvoice!$G$3,InvoiceList!$H$11:$H$16,0),MATCH("Titel "&AutoInvoice!J35,InvoiceList!$A$10:$CK$10,0))=0,"",INDEX(InvoiceList!$A$11:$CG$16,MATCH(AutoInvoice!$G$3,InvoiceList!$H$11:$H$16,0),MATCH("Titel "&AutoInvoice!J35,InvoiceList!$A$10:$CK$10,0))),"") ->  | D35: =IF(A35="","",IFERROR(INDEX(InvoiceList!$A$11:$CG$16,MATCH(AutoInvoice!$G$3,InvoiceList!$H$11:$H$16,0),MATCH("Timmar "&AutoInvoice!J35,InvoiceList!$10:$10,0)),"")) ->  | E35: =IF(A35="","",IFERROR(INDEX(InvoiceList!$A$11:$CG$16,MATCH(AutoInvoice!$G$3,InvoiceList!$H$11:$H$16,0),MATCH("Timtaxa "&AutoInvoice!J35,InvoiceList!$10:$10,0)),"")) -> 
A36: =IFERROR(IF(INDEX(InvoiceList!$A$11:$CG$16,MATCH(AutoInvoice!$G$3,InvoiceList!$H$11:$H$16,0),MATCH("Titel "&AutoInvoice!J36,InvoiceList!$A$10:$CK$10,0))=0,"",INDEX(InvoiceList!$A$11:$CG$16,MATCH(AutoInvoice!$G$3,InvoiceList!$H$11:$H$16,0),MATCH("Titel "&AutoInvoice!J36,InvoiceList!$A$10:$CK$10,0))),"") ->  | D36: =IF(A36="","",IFERROR(INDEX(InvoiceList!$A$11:$CG$16,MATCH(AutoInvoice!$G$3,InvoiceList!$H$11:$H$16,0),MATCH("Timmar "&AutoInvoice!J36,InvoiceList!$10:$10,0)),"")) ->  | E36: =IF(A36="","",IFERROR(INDEX(InvoiceList!$A$11:$CG$16,MATCH(AutoInvoice!$G$3,InvoiceList!$H$11:$H$16,0),MATCH("Timtaxa "&AutoInvoice!J36,InvoiceList!$10:$10,0)),"")) ->  | J36: 11
A37: =IFERROR(IF(INDEX(InvoiceList!$A$11:$CG$16,MATCH(AutoInvoice!$G$3,InvoiceList!$H$11:$H$16,0),MATCH("Titel "&AutoInvoice!J37,InvoiceList!$A$10:$CK$10,0))=0,"",INDEX(InvoiceList!$A$11:$CG$16,MATCH(AutoInvoice!$G$3,InvoiceList!$H$11:$H$16,0),MATCH("Titel "&AutoInvoice!J37,InvoiceList!$A$10:$CK$10,0))),"") ->  | D37: =IF(A37="","",IFERROR(INDEX(InvoiceList!$A$11:$CG$16,MATCH(AutoInvoice!$G$3,InvoiceList!$H$11:$H$16,0),MATCH("Timmar "&AutoInvoice!J37,InvoiceList!$10:$10,0)),"")) ->  | E37: =IF(A37="","",IFERROR(INDEX(InvoiceList!$A$11:$CG$16,MATCH(AutoInvoice!$G$3,InvoiceList!$H$11:$H$16,0),MATCH("Timtaxa "&AutoInvoice!J37,InvoiceList!$10:$10,0)),"")) ->  | J37: 12
A38: =IFERROR(IF(INDEX(InvoiceList!$A$11:$CG$16,MATCH(AutoInvoice!$G$3,InvoiceList!$H$11:$H$16,0),MATCH("Titel "&AutoInvoice!J38,InvoiceList!$A$10:$CK$10,0))=0,"",INDEX(InvoiceList!$A$11:$CG$16,MATCH(AutoInvoice!$G$3,InvoiceList!$H$11:$H$16,0),MATCH("Titel "&AutoInvoice!J38,InvoiceList!$A$10:$CK$10,0))),"") ->  | D38: =IF(A38="","",IFERROR(INDEX(InvoiceList!$A$11:$CG$16,MATCH(AutoInvoice!$G$3,InvoiceList!$H$11:$H$16,0),MATCH("Timmar "&AutoInvoice!J38,InvoiceList!$10:$10,0)),"")) ->  | E38: =IF(A38="","",IFERROR(INDEX(InvoiceList!$A$11:$CG$16,MATCH(AutoInvoice!$G$3,InvoiceList!$H$11:$H$16,0),MATCH("Timtaxa "&AutoInvoice!J38,InvoiceList!$10:$10,0)),"")) ->  | J38: 13
A39: =IFERROR(IF(INDEX(InvoiceList!$A$11:$CG$16,MATCH(AutoInvoice!$G$3,InvoiceList!$H$11:$H$16,0),MATCH("Titel "&AutoInvoice!J39,InvoiceList!$A$10:$CK$10,0))=0,"",INDEX(InvoiceList!$A$11:$CG$16,MATCH(AutoInvoice!$G$3,InvoiceList!$H$11:$H$16,0),MATCH("Titel "&AutoInvoice!J39,InvoiceList!$A$10:$CK$10,0))),"") ->  | D39: =IF(A39="","",IFERROR(INDEX(InvoiceList!$A$11:$CG$16,MATCH(AutoInvoice!$G$3,InvoiceList!$H$11:$H$16,0),MATCH("Timmar "&AutoInvoice!J39,InvoiceList!$10:$10,0)),"")) ->  | E39: =IF(A39="","",IFERROR(INDEX(InvoiceList!$A$11:$CG$16,MATCH(AutoInvoice!$G$3,InvoiceList!$H$11:$H$16,0),MATCH("Timtaxa "&AutoInvoice!J39,InvoiceList!$10:$10,0)),"")) ->  | J39: 14
A40: =IFERROR(IF(INDEX(InvoiceList!$A$11:$CG$16,MATCH(AutoInvoice!$G$3,InvoiceList!$H$11:$H$16,0),MATCH("Titel "&AutoInvoice!J40,InvoiceList!$A$10:$CK$10,0))=0,"",INDEX(InvoiceList!$A$11:$CG$16,MATCH(AutoInvoice!$G$3,InvoiceList!$H$11:$H$16,0),MATCH("Titel "&AutoInvoice!J40,InvoiceList!$A$10:$CK$10,0))),"") ->  | D40: =IF(A40="","",IFERROR(INDEX(InvoiceList!$A$11:$CG$16,MATCH(AutoInvoice!$G$3,InvoiceList!$H$11:$H$16,0),MATCH("Timmar "&AutoInvoice!J40,InvoiceList!$10:$10,0)),"")) ->  | E40: =IF(A40="","",IFERROR(INDEX(InvoiceList!$A$11:$CG$16,MATCH(AutoInvoice!$G$3,InvoiceList!$H$11:$H$16,0),MATCH("Timtaxa "&AutoInvoice!J40,InvoiceList!$10:$10,0)),"")) ->  | J40: 15
A41: =IFERROR(IF(INDEX(InvoiceList!$A$11:$CG$16,MATCH(AutoInvoice!$G$3,InvoiceList!$H$11:$H$16,0),MATCH("Titel "&AutoInvoice!J41,InvoiceList!$A$10:$CK$10,0))=0,"",INDEX(InvoiceList!$A$11:$CG$16,MATCH(AutoInvoice!$G$3,InvoiceList!$H$11:$H$16,0),MATCH("Titel "&AutoInvoice!J41,InvoiceList!$A$10:$CK$10,0))),"") ->  | D41: =IF(A41="","",IFERROR(INDEX(InvoiceList!$A$11:$CG$16,MATCH(AutoInvoice!$G$3,InvoiceList!$H$11:$H$16,0),MATCH("Timmar "&AutoInvoice!J41,InvoiceList!$10:$10,0)),"")) ->  | E41: =IF(A41="","",IFERROR(INDEX(InvoiceList!$A$11:$CG$16,MATCH(AutoInvoice!$G$3,InvoiceList!$H$11:$H$16,0),MATCH("Timtaxa "&AutoInvoice!J41,InvoiceList!$10:$10,0)),"")) ->  | J41: 16
A42: =IFERROR(IF(INDEX(InvoiceList!$A$11:$CG$16,MATCH(AutoInvoice!$G$3,InvoiceList!$H$11:$H$16,0),MATCH("Titel "&AutoInvoice!J42,InvoiceList!$10:$10,0))=0,"",INDEX(InvoiceList!$A$11:$CG$16,MATCH(AutoInvoice!$G$3,InvoiceList!$H$11:$H$16,0),MATCH("Titel "&AutoInvoice!J42,InvoiceList!$10:$10,0))),"") ->  | D42: =IF(A42="","",IFERROR(INDEX(InvoiceList!$A$11:$CG$16,MATCH(AutoInvoice!$G$3,InvoiceList!$H$11:$H$16,0),MATCH("Timmar "&AutoInvoice!J42,InvoiceList!$10:$10,0)),"")) ->  | E42: =IF(A42="","",IFERROR(INDEX(InvoiceList!$A$11:$CG$16,MATCH(AutoInvoice!$G$3,InvoiceList!$H$11:$H$16,0),MATCH("Timtaxa "&AutoInvoice!J42,InvoiceList!$10:$10,0)),"")) ->  | J42: 17
G43: Belopp före moms | I43: =SUM(I20:I42) -> 14750
G44: Total moms | I44: =SUM(H20:H42) -> 3687.5
G45: Öresavrundning | I45: =ROUND(SUM(I43:I44),0)-SUM(I43:I44) -> 0.5
G46: Att Betala | I46: =SUM(I43:I45) -> 18438
A47: Adress | C47: Telefonnummer | G47: BankGiro | I47: Organisationsnr
A48: =IF(ManualInvoice!A48="","Saknas",ManualInvoice!A48) -> Saknas | C48: =IF(ManualInvoice!C48="","Saknas",ManualInvoice!C48) -> Saknas | G48: =IF(ManualInvoice!G48="","Saknas",ManualInvoice!G48) -> Saknas | I48: =IF(ManualInvoice!I48="","Saknas",ManualInvoice!I48) -> Saknas
A49: =IF(ManualInvoice!A49="","Saknas",ManualInvoice!A49) -> Saknas | C49: Epost | G49: BIC | I49: Momsreg.nr
A50: =IF(ManualInvoice!A50="","Saknas",ManualInvoice!A50) -> Saknas | C50: =IF(ManualInvoice!C50="","Saknas",ManualInvoice!C50) -> Saknas | G50: =IF(ManualInvoice!G50="","Saknas",ManualInvoice!G50) -> Saknas | I50: =IF(ManualInvoice!I50="","Saknas",ManualInvoice!I50) -> Saknas
G51: IBAN
G52: =IF(ManualInvoice!G52="","Saknas",ManualInvoice!G52) -> Saknas

Sheet SendEmails (hidden)
C2: 1_ToEmail
C3: 2_EmailSent
C4: 3_AwaitingDetails
C5: 4_NotSent
B9: =IF(Admin!$B$12="NO","",IF(Admin!$B$4="MONTH",IF(MONTH(NOW())<>MONTH(Admin!$B$6),"This is a free version. Contact Exceldepartment for unlocking full potential of the model.",""), IF(Admin!$B$4="QRT",IF(INT((MONTH(NOW())+2)/3)<>INT((MONTH(Admin!$B$6)+2)/3),"This is a free version. Contact Exceldepartment for unlocking full potential of the model.",""), IF(Admin!$B$4="YEAR",IF(YEAR(NOW())<>YEAR(Admin!$B$6),"This is a free version. Contact Exceldepartment for unlocking full potential of the model.",""), "This is a free version. Contact Exceldepartment for unlocking full potential of the model.")))) -> This is a free version. Contact Exceldepartment for unlocking full potential of the model.
B10: Project | C10: _Status | D10: _Prio | E10: _Comment | F10: _Email | G10: _CC | H10: _Date | I10: _EmailSubject | J10: _EmailBody
B11: Project 4 | C11: 1_ToEmail | F11: info@exceldepartment.com | G11: lukas.lilja@exceldepartment.com | H11: 2023-10-12T12:49:25 | I11: Test | J11: XLD test

Sheet FetchEmails (hidden)
C5: Date From | D5: Date To | E5: Subject Contains | F5: Body contains | G5: <<< email filter
C6: 2023-10-12T13:08:55 | D6: 2023-10-10
B7: =IF(Admin!$B$12="NO","",IF(Admin!$B$4="MONTH",IF(MONTH(NOW())<>MONTH(Admin!$B$6),"This is a free version. Contact Exceldepartment for unlocking full potential of the model.",""), IF(Admin!$B$4="QRT",IF(INT((MONTH(NOW())+2)/3)<>INT((MONTH(Admin!$B$6)+2)/3),"This is a free version. Contact Exceldepartment for unlocking full potential of the model.",""), IF(Admin!$B$4="YEAR",IF(YEAR(NOW())<>YEAR(Admin!$B$6),"This is a free version. Contact Exceldepartment for unlocking full potential of the model.",""), "This is a free version. Contact Exceldepartment for unlocking full potential of the model.")))) -> This is a free version. Contact Exceldepartment for unlocking full potential of the model.
F9: NOT VALID SUBJE1202119 | G9: =IFERROR(MID(B9,FIND("@",B9)+1,FIND(";",B9)-FIND("@",B9)-1), IFERROR(RIGHT(B9,LEN(B9)-FIND("@",B9)),"")) ->  | H9: =IFERROR(MID(D9,FIND(" - ",D9)+3,100),"NOT VALID SUBJECT") -> NOT VALID SUBJECT | I9: =+E9 -> 0 | J9: =1 -> 1 | K9: =IFERROR(IF(FIND(";",B9),UPPER(LEFT(MID(B9,FIND(";",B9)+2,1000),1))&UPPER(MID(MID(B9,FIND(";",B9)+3,1000),FIND(".",MID(B9,FIND(";",B9)+3,1000))+1,1)),""),"") ->  | L9: =IFERROR(DATE(YEAR(C9),MONTH(C9),DAY(C9)),0) -> 00:00:00 | M9: =+L9+1 -> 1900-01-01 | N9: 1_Assigned
B10: _SendTo | C10: _MailSent | D10: _MailSubject | E10: _MailBody | F10: _Key | G10: ClientServer | H10: _Name | I10: _Description | J10: _Hours | K10: _Responsible | L10: _StartDate | M10: _EndDate | N10: _Status
G11: =IFERROR(MID(B11,FIND("@",B11)+1,FIND(";",B11)-FIND("@",B11)-1), IFERROR(RIGHT(B11,LEN(B11)-FIND("@",B11)),"")) ->  | H11: =IFERROR(MID(D11,FIND(" - ",D11)+3,100),"NOT VALID SUBJECT") -> NOT VALID SUBJECT | I11: =+E11 -> 0 | J11: =1 -> 1 | K11: =IFERROR(IF(FIND(";",B11),UPPER(LEFT(MID(B11,FIND(";",B11)+2,1000),1))&UPPER(MID(MID(B11,FIND(";",B11)+3,1000),FIND(".",MID(B11,FIND(";",B11)+3,1000))+1,1)),""),"") ->  | L11: =IFERROR(DATE(YEAR(C11),MONTH(C11),DAY(C11)),0) -> 00:00:00 | M11: =+L11+1 -> 1900-01-01

Sheet Admin (hidden)
A1: RootForGeneratingPasswords | B1: LOCKDATE | F1: VISIBLE SHEETS
A2: zX1mHOF4BzSE | B2: 2023-10-24 | C2: DataColor | D2: Values | F2: wManualFaktura | M2: INVOICESTATUS
A3: oIP7ALgV2TbD | B3: QRT/MNTH | C3: _Key | D3: Ref | M3: 1_Sent
A4: PBf1K6hy2ANJ | B4: QRT | C4: ConnectedTitles | D4: Marknad | M4: 2_Generate
A5: U22abS0FBELA | B5: MANUAL DATE | C5: KeyConnector | M5: 3_GetDetails
A6: IgN18Hgg4NAT | B6: 2023-09-01 | M6: 31_AwaitingDetails
A7: PXSz19ba6IVA | B7: LOCKFORMULA | M7: 6_FollowUp
A8: P07GgaK1bKOC | B8: =IF(Admin!$B$12="NO","",IF(Admin!$B$4="MONTH",IF(MONTH(NOW())<>MONTH(Admin!$B$6),"This is a free version. Contact Exceldepartment for unlocking full potential of the model.",""), IF(Admin!$B$4="QRT",IF(INT((MONTH(NOW())+2)/3)<>INT((MONTH(Admin!$B$6)+2)/3),"This is a free version. Contact Exceldepartment for unlocking full potential of the model.",""), IF(Admin!$B$4="YEAR",IF(YEAR(NOW())<>YEAR(Admin!$B$6),"This is a free version. Contact Exceldepartment for unlocking full potential of the model.",""), "This is a free version. Contact Exceldepartment for unlocking full potential of the model.")))) -> This is a free version. Contact Exceldepartment for unlocking full potential of the model. | M8: 97_Credited
A9: G90BabzCLSLO | B9: PASSWORD | M9: 98_CreditInvoice
A10: JSJml83TDVIN | B10: 42 | M10: 99_Cancel
A11: Wr15KDosZSAN | B11: USEPROTECTION
A12: HWilC19QXIRE | B12: YES
A13: ABIZG12qzMAR | B13: USEPROTECTIONWB
A14: FGYhhJ0SABUB | B14: YES
